Cogmind - Beta 11.1 @@@ ROGUE MODE // 2022.12.13 @ 23:13:40 Player: Yung_Crimp Result: Destroyed by Y-45 Defender with Heavy Assault Rifle Performance ------------- Evolutions (1) 500 Regions Visited (2) 400 Robots Destroyed (31) 155 Value Destroyed (501) 501 Prototype IDs (2) 40 Alien Tech Used (0) 0 Bonus (0) 0 TOTAL SCORE: 1596 Bonus ------- None Cogmind --------- Core Integrity 0/400 Matter 299/300 Energy 100/100 System Corruption 0% Temperature Cool (0) Movement Core (50) Location -9/Materials Parts ------- > --- POWER (2) -------- (None) > --- PROPULSION (2) --- (None) > --- UTILITY (3) ------ (None) > --- WEAPON (2) ------- (None) > --- INVENTORY (5) ---- Medium Matter Pod (100) Medium Matter Pod (100) High-capacity Matter Pod (200) Improved Terrain Scanner Peak State ------------ > --- POWER ------------ Ion Engine Improved Ion Engine > --- PROPULSION ------- Improved Hover Unit Flight Unit > --- UTILITY ---------- Heat Sink Small Storage Unit Seismic Detector > --- WEAPON ----------- Small Laser Light Cannon > --- INVENTORY -------- Medium Matter Pod Medium Matter Pod High-capacity Matter Pod Improved Terrain Scanner Mining Laser [Rating: 11] Favorites ----------- Power Light Ion Engine Engine Light Ion Engine Propulsion Light Treads Treads Light Treads Wheel Compact Wheel Hover Unit Improved Hover Unit Flight Unit Flight Unit Utility Small Storage Unit Device Seismic Detector Storage Small Storage Unit Weapon Light Assault Rifle Energy Gun EM Pulse Gun Ballistic Gun Light Assault Rifle Ballistic Cannon Light Cannon Special Weapon Mining Laser Build | -11 -10 -9 ------- Run | Scr Mat Mat Slots Evolved 2 | . . 2 Power 1 | . . 1 Propulsion . | . . . Utility 1 | . . 1 Weapon . | . . . Parts Attached 35 | 9 17 9 Power 4 | 1 1 2 Engine 4 | 1 1 2 Core . | . . . Reactor . | . . . Propulsion 13 | 2 8 3 Treads 3 | 2 . 1 Leg . | . . . Wheel 6 | . 6 . Hover 2 | . 1 1 Flight 2 | . 1 1 Utility 9 | 4 3 2 Device 5 | 2 1 2 Storage 4 | 2 2 . Processor . | . . . Hackware . | . . . Protection . | . . . Artifact . | . . . Weapon 9 | 2 5 2 Energy Gun 3 | 1 1 1 Energy Cannon . | . . . Ballistic Gun 3 | 1 2 . Ballistic Cannon 1 | . 1 . Launcher . | . . . Special Weapon 2 | . 1 1 Impact Weapon . | . . . Slashing Weapon . | . . . Piercing Weapon . | . . . Special Melee Weapon . | . . . Unidentified Prototypes . | . . . Parts Lost 14 | . 3 11 Power 3 | . 1 2 Propulsion 4 | . 1 3 Utility 3 | . . 3 Weapon 4 | . 1 3 Highest Loss Streak 9 | . 3 9 To Critical Strikes . | . . . Average Slot Usage (%) 83 | . 93 70 Engine 12 | . 12 13 Treads 8 | . 13 . Wheel 4 | . 8 . Hover 2 | . 1 4 Flight 3 | . 2 4 Device 11 | . 4 20 Storage 17 | . 23 10 Energy Gun 8 | . 10 5 Ballistic Gun 7 | . 12 . Ballistic Cannon 4 | . . 9 Special Weapon 1 | . 2 . Naked Turns 6 | . . 6 Heaviest Build 23 | 13 15 23 Greatest Support 40 | 40 40 7 Greatest Overweight (x) 7 | . 4 7 Average Overweight (x) . | . . 3 Largest Inventory Capacity 8 | 8 8 8 Average Capacity 7 | 7 8 7 Most Carried 8 | 5 8 7 Average Carried 5 | 2 6 5 Final Capacity 8 | 8 8 5 Final Carried 6 | 4 6 4 Class Distribution -------------------- 62% | Mutant 37% | Scavenger-Mutant Dominant Class ---------------- Mutant | -10/Materials Scavenger-Mutant | -9/Materials Resources | -11 -10 -9 ----------- Run | Scr Mat Mat Matter Collected 1099 | 354 591 154 Remotely . | . . . Salvage Created 950 | 248 491 211 Parts 69 | 24 39 6 Haulers Intercepted . | . . . Recyclers Shooed 1 | . . 1 Parts Field Recycled . | . . . Retrieved Matter . | . . . Parts Self-Destructed . | . . . Prevented . | . . . Kills | -11 -10 -9 ------- Run | Scr Mat Mat Combat Hostiles Destroyed 16 | . 12 4 Guns 12 | . 12 . Cannons 4 | . . 4 Classes Destroyed 8 | 3 3 2 Worker 3 | 2 1 . Builder 1 | . . 1 Tunneler 6 | 6 . . Recycler 4 | 1 2 1 Watcher 1 | . 1 . Swarmer 6 | . 6 . Grunt 9 | . 6 3 Sentry 1 | . . 1 Best Kill Streak 6 | 2 6 2 Combat Bots Only 3 | . 3 2 Max Kills in Single Turn 2 | 1 2 1 Gunslinging 1 | . 1 . Exploded . | . . . Melee . | . . . Uniques/NPCs Destroyed . | . . . Combat | -11 -10 -9 -------- Run | Scr Mat Mat Damage Taken 1839 | . 739 1100 Core 576 | . 174 402 Absorbed by Shields . | . . . Core Remaining (%) 65 | 100 30 . Volleys Fired 123 | 20 73 30 Largest 2 | 2 2 2 Hottest 100 | 60 60 100 Shots Fired 169 | 40 87 42 Gun 139 | 40 87 12 Cannon 25 | . . 25 Launcher . | . . . Special 5 | . . 5 Kinetic 94 | 20 49 25 Thermal 43 | . 26 17 Explosive . | . . . Electromagnetic 32 | 20 12 . Robot Hit Streak 11 | 4 8 11 Robot Miss Streak 3 | 3 3 3 Penetration Max . | . . . Secondary Targets 2 | . 2 . Max Gunslinging Chain 1 | . 1 . Shots Hit Robots 102 | 19 54 29 Core Hits 47 | 12 26 9 Critical Kills . | . . . Critical Parts Destroyed . | . . . Critical Strikes 2 | . . 2 Blast 2 | . . 2 Melee Attacks . | . . . Impact . | . . . Slashing . | . . . Piercing . | . . . Sneak Attacks . | . . . Combat Hostiles . | . . . Follow-up Attacks . | . . . Damage Inflicted 1322 | 221 591 510 Guns 858 | 221 551 86 Cannons 304 | . . 304 Explosions 39 | . 39 . Melee . | . . . Ramming 1 | . 1 . Kinetic 616 | 68 244 304 Thermal 423 | . 217 206 Explosive . | . . . Electromagnetic 282 | 153 129 . Impact . | . . . Slashing . | . . . Piercing . | . . . Highest Corruption . | . . . Average Corruption . | . . . Corruption Purged . | . . . Corruption Blocked . | . . . Overload Shots . | . . . Overflow Damage . | . . . Projectiles . | . . . Explosions . | . . . Melee . | . . . Knockbacks 5 | . . 5 Impact . | . . . Kinetic 4 | . . 4 Secondary 1 | . . 1 Self-Inflicted Damage . | . . . Shots . | . . . Rammed 1 | . 1 . Targets Rammed 1 | . 1 . Kicked . | . . . Crushed . | . . . Highest Temperature 76 | 40 76 33 Average Temperature 16 | 15 18 13 Received Heat Transfer 681 | . 240 441 Siege Activations . | . . . Robots Corrupted . | . . . Combat Hostiles . | . . . Parts Fried . | . . . Impact Corruptions . | . . . Robots Melted . | . . . Combat Hostiles . | . . . Parts Melted 1 | . 1 . Heat Transferred 950 | . 500 450 Parts Sabotaged . | . . . Parts Stolen . | . . . Parts Stripped . | . . . Power Chain Reactions 1 | . 1 . Missiles Intercepted . | . . . Alert | -11 -10 -9 ------- Run | Scr Mat Mat Peak Influence 207 | 45 207 104 Initial 29 | . 29 29 Average 59 | 23 86 43 Maximum Alert Level 1 | . 1 . Low Security (%) 97 | 100 93 100 Level 1 2 | . 6 . Level 2 . | . . . Level 3 . | . . . Level 4 . | . . . Level 5 . | . . . High Security . | . . . Max Security . | . . . Squads Dispatched 6 | . 4 2 Investigation 2 | . . 2 Extermination . | . . . Reinforcement 4 | . 4 . Assault . | . . . Garrison . | . . . Intercept . | . . . Searches Triggered . | . . . Construction Impeded . | . . . Haulers Reinforced . | . . . Active Scanning Responses . | . . . Cargo Convoy Interrupts . | . . . Stealth | -11 -10 -9 --------- Run | Scr Mat Mat Distress Signals 2 | . 2 . Communications Jammed . | . . . Distress Signals . | . . . Times Spotted 31 | . 23 8 Peak Tracking Total 4 | . 4 4 Tactical Retreats 1 | . 1 . Traps | -11 -10 -9 ------- Run | Scr Mat Mat Traps Triggered . | . . . Indirectly . | . . . Trap Hack Attempts . | . . . Triggered . | . . . Disarmed . | . . . Reprogrammed . | . . . Reused . | . . . Traps Extracted . | . . . Installed . | . . . Triggered . | . . . Machines | -11 -10 -9 ---------- Run | Scr Mat Mat Machines Disabled . | . . . Max in Single Turn . | . . . Machines Sabotaged . | . . . Garrisons Compromised . | . . . Overloaded Fab Kills . | . . . Hacking | -11 -10 -9 --------- Run | Scr Mat Mat Machines Accessed 5 | . 3 2 Terminals 4 | . 2 2 Fabricators . | . . . Repair Stations . | . . . Recycling Units 1 | . 1 . Scanalyzers . | . . . Garrison Access . | . . . Total Hacks 17 | . 10 7 Successful 10 | . 6 4 Failed 7 | . 4 3 Catastrophic . | . . . Database Lockouts . | . . . Manual . | . . . Terminals 15 | . 8 7 Fabricators . | . . . Repair Stations . | . . . Recycling Units 2 | . 2 . Scanalyzers . | . . . Garrison Access . | . . . Terminal Hacks 8 | . 4 4 Record 7 | . 3 4 Prototype ID Bank 1 | . 1 . Fabricator Hacks . | . . . Repair Station Hacks . | . . . Recycling Unit Hacks 2 | . 2 . Process 1 | . 1 . Report Inventory 1 | . 1 . Scanalyzer . | . . . Garrison Access Hacks . | . . . Unauthorized Hacks . | . . . Terminals . | . . . Fabricators . | . . . Repair Stations . | . . . Recycling Units . | . . . Scanalyzers . | . . . Garrison Access . | . . . Data Cores Recovered . | . . . Used . | . . . Hacking Detections 4 | . 2 2 Full Trace Events 4 | . 2 2 Feedback Events . | . . . Feedback Blocked . | . . . Robot Schematics Acquired . | . . . Robots Built . | . . . Authchips . | . . . Time . | . . . Total Robot Build Rating . | . . . Part Schematics Acquired . | . . . Parts Built . | . . . Authchips . | . . . Time . | . . . Total Part Build Rating . | . . . Parts Repaired . | . . . Time . | . . . Parts Recycled . | . . . Recycled Matter 7 | . 7 . Retrieved Matter . | . . . Retrieved Components . | . . . Parts Scanalyzed . | . . . Part Schematics Acquired . | . . . Parts Damaged . | . . . Bothacking | -11 -10 -9 ------------ Run | Scr Mat Mat Used RIF Installer . | . . . Robots Hacked . | . . . Non-combat . | . . . Combat . | . . . Robot Hacks Applied . | . . . Relay Couplers Released . | . . . Fabnet Peak Effective % . | . . . Robots Rewired . | . . . Allies Hacked . | . . . Hacks Repelled . | . . . Allies | -11 -10 -9 -------- Run | Scr Mat Mat Total Allies . | . . . Largest Group . | . . . Highest-Rated Group . | . . . Highest-Rated Ally . | . . . Total Orders . | . . . Ally Attacks . | . . . Total Damage . | . . . Kills . | . . . Allies Corrupted . | . . . Allies Melted . | . . . Intel | -11 -10 -9 ------- Run | Scr Mat Mat Robot Analysis Total . | . . . Derelict Logs Recovered . | . . . Drone Launches . | . . . Drone Recoveries . | . . . Exploration | -11 -10 -9 ------------- Run | Scr Mat Mat Turns Passed 1873 | 387 867 619 Spaces Moved 912 | 203 510 199 Core 149 | 12 53 84 Treads 415 | 191 224 . Legs . | . . . Wheels 197 | . 197 . Hover 136 | . 35 101 Flight 15 | . 1 14 Fastest Speed 50 | 50 80 120 Average Speed 161 | 153 132 244 Slowest Speed 440 | 160 280 440 Overloaded Moves . | . . . Propulsion Burnouts . | . . . Robots Hopped . | . . . Cave-ins Triggered . | . . . Exploration Rate (%) 24 | 9 53 12 Regions Visited 2 Branch Regions . Pre-discovered Areas . | . . . Known Exits Taken . | . . . Unknown Exits Taken 2 | 1 1 . Scrap Searched . | . . . Spaces Dug . | . . . Terrain Destroyed 2 | . 2 . Melee . | . . . Projectile . | . . . AOE 2 | . 2 . Terrain Rammed . | . . . Walls Destroyed . | . . . Machines Disabled . | . . . Actions | -11 -10 -9 --------- Run | Scr Mat Mat Total 1154 | 244 631 279 Wait 35 | . . 35 Move 910 | 202 509 199 Hop . | . . . Pick Up 31 | 11 15 5 Fast Attach . | . . . Attach 30 | 9 13 8 Detach 6 | 2 3 1 Swap 5 | . 4 1 Drop 13 | . 13 . Fire 123 | 20 73 30 Melee . | . . . Ram 1 | . 1 . Kick . | . . . Crush . | . . . Escape Stasis . | . . . Rewire . | . . . Trap . | . . . Miscellaneous . | . . . Route ------- -11/Scrapyard -10/Materials (discovered 4 exits: *Mat x2 / [*Min x2]) -9/Materials (discovered 1 exit: [*Sto]) History --------- Turn | Location | Event 5 | -11/Scrapyard | Discovered new exit (range 16) 388 | -11/Scrapyard | Entered Materials 389 | -10/Materials | Build established: Mutant 452 | -10/Materials | Discovered new exit (range 16) 689 | -10/Materials | Discovered new exit (range 10) 846 | -10/Materials | Discovered new exit (range 6) 1101 | -10/Materials | Build established: Scavenger-Mutant 1130 | -10/Materials | Core integrity fell below 50% 1166 | -10/Materials | Discovered new exit (range 7) 1188 | -10/Materials | Lost 3 parts (1p1n1w) 1255 | -10/Materials | Entered another Materials area 1255 | -9/Materials | Evolved 2 slots: Power x1, Utility x1 1256 | -9/Materials | Discovered new exit (range 16) 1451 | -9/Materials | Build established: Mutant 1761 | -9/Materials | Build established: Scavenger-Mutant 1847 | -9/Materials | Core integrity fell below 50% 1871 | -9/Materials | Core integrity fell below 20% 1874 | -9/Materials | Destroyed by Y-45 Defender with Heavy Assault Rifle Last Messages --------------- 01775_ Sml. Laser destroyed. 01779_ Y-45 Defender destroyed. 01781_ Acquired 1 matter. 01785_ Acquired 3 matter. 01793_ Acquired 11 matter. 01797_ Imp. Ion Engine destroyed. 01803_ Acquired Lgt. Treads. 01808_ Critical hit (Burn: +37). 01817_ Lgt. Cannon destroyed. 01823_ Ion Engine destroyed. 01823_ Critical hit (Burn: +37). 01826_ Heat Sink destroyed. 01826_ U-05 Engineer destroyed. 01828_ U-05 Engineer builds a Door. 01844_ Seismic Detector destroyed. 01847_ Y-45 Defender heat spikes uncontrollably. 01848_ Y-45 Defender heat short circuits Beam Rifle. 01850_ Mining Laser destroyed. 01866_ Lgt. Treads destroyed. 01868_ Sml. Storage Unit destroyed. Map ----- +----------------------------------------------------+ | ????????????????????????????????????? | | ????????????????????????????????????? | | ????????????????????????????????????? | | ????????????????????????????????????? | | ????????????????????????????????????? | | ????????????????????????????????????? | | ????????????????????????????????????? | | ????????????????????????????????????? | | ????????????????????????????????????? | | ????????????????????????????????????? | | ????????????????????????????????????? | | ????????????????????????????????????? | | ????????????????????????????????????? | | ????????????????????????????????????? | | ????????????????????????????????????? | | ????????????????????????????????????? | | ????????????????????????????????????? | | ????????????????????????????????????? | | ????????????????????????????????????? | | ????????????????????????????????????? | | ????????????????????????????????????? | | ????????????????????????????????????? | | ??????????????????????#?########????? | | ??????????????????????# # #????? | | ??????????????????????# # """#????? | | ??????????????# ### #@ """#????? | | ?????????? %gY %"""#????? | | ??????????????# ###=#% """#????? | | ??????????????????????# # g #????? | | ??????????????????????# ##/##+##????? | | ??????????????????????# #?????? | | ??????????????????????# #?????? | | ??????????????????????# ####### | | ??????????????????????# # # | | ??????????????????????# %# # | | ??????????????????????# + """ # | | ??????????????????????# ##### # """ # | | ??????????????????????#/????# # """ # | | ?????????????????????? ????# # # | | ?????????????????????? ????# # # | | ????????????????????? "???### ####### | | ?????????????????????""???# #???? | | ??????????????????????????# T" #???? | | ????????????????????????? / " #???? | | ???????????????????????? # #???? | | ??????????????#????????" # #?#?? | | ??????????????????????" ## ##???? | | ?????????????????????"" ???# #????? | | ????????????????????# "????# #????? | | ????????????? ?????# ?????# #????? | +----------------------------------------------------+ Best States ------------- Heat Dissipation 38 Energy Generation 17 Energy Capacity 415 Matter Stores 500 Matter Capacity 500 Sight Range 16 Terrain Scan Range 16 Terrain Scan Density 10 Evasion (%) 50 Recoil Reduction 2 Item Schematics ----------------- None Robot Schematics ------------------ None Fabricated ------------ Nothing Alien Tech Used ----------------- None Achievements -------------- Crack Shot Challenges ------------ None Game ------ Seed WaveMetafiberCalibrator Manual? 0 Play Time 00:31:57 Cumulative 2.3 hours Start 2022.12.13 @ 22:36:31 End 2022.12.13 @ 23:13:40 Sessions 1 Manual Loads 0 Difficulty Rogue Special Mode None Game No. 5 Rogue 5 Adventurer 0 Explorer 0 Win Type - Total 0 Types 0/0/0/0/0/0/0/0/0 Lore% 1 Gallery% 3 Achievement% 3 Wizard Run 0 Options --------- ASCII 0 Keyboard 0 Movement Mouse Keybinds 0 Fullscreen 1 Font 18/SmallcapsGlow Map View 76x50 Tactical HUD 1 Map Filters NONE Filters NONE Steam 1 RUN: 1a82a080-37d8-4f70-b149-2b3ba723293a